fUST/lending_fUST_20250620
["ID","MTS","AMOUNT","RATE_DAILY","PERIOD"]
[366748787,1750431042816,-460.0,0.00020173,2]
[366748789,1750431042826,-460.0,0.00020173,2]
[366748791,1750431042835,-460.0,0.00020173,2]
[366748793,1750431042845,-460.0,0.00020173,2]
[366748795,1750431042855,-460.0,0.00020173,2]
[366748797,1750431042864,-460.0,0.00020173,2]
[366748799,1750431042874,-460.0,0.00020173,2]
[366748801,1750431042884,-418.81626381,0.00020173,2]
[366748803,1750431042894,-460.0,0.00020173,2]
[366748805,1750431042903,-460.0,0.00020173,2]
[366748807,1750431042913,-460.0,0.00020173,2]
[366748809,1750431042923,-460.0,0.00020173,2]
[366748811,1750431042932,-460.0,0.00020173,2]
[366748813,1750431042941,-460.0,0.00020173,2]
[366748815,1750431042952,-471.85362121,0.00020173,2]
[366748817,1750431042962,-460.0,0.00020173,2]
[366748819,1750431042971,-326.19704284,0.00020173,2]
[366748821,1750431042981,-460.0,0.00020173,2]
[366748823,1750431042990,-460.0,0.00020173,2]
[366748825,1750431043000,-460.0,0.00020173,2]
[366748827,1750431043009,-460.0,0.00020173,2]
[366748829,1750431043019,-460.0,0.00020173,2]
[366748831,1750431043028,-381.0839327,0.00020177,2]
[366748833,1750431043038,-460.0,0.00020177,2]
[366748835,1750431043048,-460.0,0.00020177,2]
[366748837,1750431043058,-494.27388399,0.00020177,2]
[366748839,1750431043068,-460.0,0.00020177,2]
[366748841,1750431043078,-460.0,0.00020177,2]
[366748843,1750431043088,-460.0,0.00020177,2]
[366748845,1750431043098,-460.0,0.00020177,2]
[366748847,1750431043108,-464.19680534,0.00020177,2]
[366748849,1750431043118,-412.35232109,0.00020177,2]
[366748851,1750431043128,-162.61,0.00020181,2]
[366748853,1750431043138,-230.0,0.00020182,2]
[366748855,1750431043148,-460.0,0.00020182,2]
[366748857,1750431043158,-460.0,0.00020182,2]
[366748859,1750431043168,-440.0,0.00020182,2]
[366748861,1750431043177,-253.542209,0.00020187,2]
[366748863,1750431043187,-593.03059433,0.00020222,2]
[366748865,1750431043197,-460.0,0.00020262,2]
[366748867,1750431043208,-262.71280636,0.00020262,2]
[366748869,1750431043218,-460.0,0.00020262,2]
[366748871,1750431043229,-460.0,0.00020262,2]
[366748873,1750431043239,-460.0,0.00020262,2]
[366748875,1750431043249,-1352.02,0.00020262,2]
[366748877,1750431043258,-460.0,0.00020262,2]
[366748879,1750431043268,-460.0,0.00020262,2]
[366748881,1750431043278,-2448.83,0.00020262,2]
[366748883,1750431043288,-460.0,0.00020262,2]
[366748885,1750431043297,-460.0,0.00020262,2]
[366748887,1750431043308,-460.0,0.00020262,2]
[366748888,1750431043317,-2727.09,0.00020262,2]
[366748890,1750431043326,-460.0,0.00020262,2]
[366748892,1750431043336,-460.0,0.00020262,2]
[366748894,1750431043346,-460.0,0.00020262,2]
[366748897,1750431043355,-601.5,0.00020262,2]
[366748898,1750431043365,-577.1,0.00020262,2]
[366748900,1750431043374,-460.0,0.00020262,2]
[366748902,1750431043383,-2869.72,0.00020262,2]
[366748904,1750431043393,-460.0,0.00020263,2]
[366748906,1750431043403,-460.0,0.00020263,2]
[366748908,1750431043412,-191.87633126,0.00020263,2]
[366748910,1750431043421,-460.0,0.00020263,2]
[366748912,1750431043430,-460.0,0.00020263,2]
[366748914,1750431043440,-460.0,0.00020263,2]
[366748916,1750431043450,-460.0,0.00020263,2]
[366748918,1750431043462,-460.0,0.00020263,2]
[366748920,1750431043471,-460.0,0.00020263,2]
[366748922,1750431043480,-451.09959524,0.00020263,2]
[366748924,1750431043490,-460.0,0.00020263,2]
[366748926,1750431043500,-387.17218895,0.00020263,2]
[366748928,1750431043509,-2293.94,0.00020263,2]
[366748929,1750431043519,-430.0,0.00020263,2]
[366748930,1750431043528,-2904.92,0.00020263,2]
[366748931,1750431043538,-511.1937004,0.00020263,2]
[366748932,1750431043547,-460.0,0.00020263,2]
[366748933,1750431043557,-1252.35,0.00020263,2]
[366748934,1750431043567,-460.0,0.00020263,2]
[366748935,1750431043576,-460.0,0.00020263,2]
[366748937,1750431043585,-460.0,0.00020263,2]
[366748939,1750431043595,-1295.45,0.00020263,2]
[366748941,1750431043604,-1344.73,0.00020263,2]
[366748943,1750431043614,-460.0,0.00020263,2]
[366748945,1750431043624,-460.0,0.00020263,2]
[366748947,1750431043634,-3259.61,0.00020263,2]
[366748949,1750431043644,-435.25960555,0.00020263,2]
[366748951,1750431043656,-460.0,0.00020263,2]
[366748953,1750431043666,-473.67,0.00020263,2]
[366748955,1750431043675,-460.0,0.00020263,2]
[366748957,1750431043685,-460.0,0.00020263,2]
[366748959,1750431043694,-460.0,0.00020263,2]
[366748961,1750431043707,-405.96863246,0.00020263,2]
[366748963,1750431043717,-460.0,0.00020263,2]
[366748965,1750431043727,-684.83,0.00020263,2]
[366748967,1750431043736,-460.0,0.00020263,2]
[366748969,1750431043746,-460.0,0.00020263,2]
[366748971,1750431043756,-460.0,0.00020263,2]
[366748973,1750431043767,-460.0,0.00020263,2]
[366748975,1750431043777,-460.0,0.00020263,2]
[366748977,1750431043787,-418.09474339,0.00020263,2]
[366748979,1750431043796,-477.17,0.00020263,2]
[366748981,1750431043807,-460.0,0.00020263,2]
[366748983,1750431043817,-300.0,0.00020263,2]
[366748985,1750431043826,-920.41,0.00020263,2]
[366748987,1750431043836,-460.0,0.00020263,2]
[366748989,1750431043845,-387.52264096,0.00020263,2]
[366748991,1750431043855,-460.0,0.00020263,2]
[366748993,1750431043864,-460.0,0.00020263,2]
[366748995,1750431043874,-289.85820282,0.00020263,2]
[366748997,1750431043883,-611.5,0.00020263,2]
[366748999,1750431043893,-168.0,0.00020295,2]
[366749001,1750431043903,-460.0,0.00020438,2]
[366749003,1750431043912,-460.0,0.00020438,2]
[366749005,1750431043922,-460.0,0.00020438,2]
[366749007,1750431043932,-460.0,0.00020438,2]
[366749009,1750431043942,-150.42545505,0.00020438,2]
[366749011,1750431043955,-436.77784811,0.00020438,2]
[366749013,1750431043964,-460.0,0.00020438,2]
[366749015,1750431043974,-3253.42,0.00020438,2]
[366749017,1750431043983,-740.88,0.00020438,2]
[366749019,1750431043993,-1438.6,0.00020438,2]
[366749021,1750431044003,-460.0,0.00020438,2]
[366749023,1750431044012,-460.0,0.00020444,2]
[366749025,1750431044022,-460.0,0.00020444,2]
[366749027,1750431044032,-460.0,0.00020444,2]
[366749029,1750431044042,-460.0,0.00020444,2]
[366749031,1750431044053,-738.13,0.00020444,2]
[366749033,1750431044062,-410.0,0.00020444,2]
[366749035,1750431044072,-460.0,0.00020444,2]
[366749037,1750431044082,-460.0,0.00020444,2]
[366749039,1750431044092,-460.0,0.00020444,2]
[366749055,1750431044240,-279.40750886,0.00020444,2]
[366749057,1750431044250,-460.0,0.00020444,2]
[366749059,1750431044259,-460.0,0.00020444,2]
[366749061,1750431044269,-460.0,0.00020444,2]
[366749063,1750431044279,-460.0,0.00020444,2]
[366749065,1750431044288,-460.0,0.00020444,2]
[366749067,1750431044298,-460.0,0.00020444,2]
[366749069,1750431044307,-460.0,0.00020444,2]
[366749071,1750431044318,-500.0,0.00020444,2]
[366749074,1750431044327,-460.0,0.00020444,2]
[366749076,1750431044338,-460.0,0.00020444,2]
[366749078,1750431044347,-460.0,0.00020444,2]
[366749080,1750431044357,-460.0,0.00020444,2]
[366749082,1750431044366,-267.41598105,0.00020444,2]
[366749083,1750431044376,-460.0,0.00020444,2]
[366749085,1750431044386,-460.0,0.00020444,2]
[366749087,1750431044395,-460.0,0.00020444,2]
[366749090,1750431044406,-460.0,0.00020444,2]
[366749091,1750431044415,-206.27428381,0.00020444,2]
[366749093,1750431044425,-460.0,0.00020444,2]
[366749095,1750431044434,-460.0,0.00020444,2]
[366749097,1750431044444,-1310.9,0.00020444,2]
[366749099,1750431044457,-546.09729294,0.00020444,2]
[366749101,1750431044466,-460.0,0.00020444,2]
[366749103,1750431044478,-460.0,0.00020444,2]
[366749105,1750431044488,-460.0,0.00020444,2]
[366749107,1750431044498,-460.0,0.00020444,2]
[366749109,1750431044508,-460.0,0.00020444,2]
[366749111,1750431044519,-460.0,0.00020444,2]
[366749113,1750431044528,-460.0,0.00020444,2]
[366749115,1750431044538,-460.0,0.00020444,2]
[366749117,1750431044548,-460.0,0.00020445,2]
[366749119,1750431044558,-460.0,0.00020445,2]
[366749121,1750431044568,-460.0,0.00020445,2]
[366749123,1750431044578,-460.0,0.00020445,2]
[366749126,1750431044588,-460.0,0.00020445,2]
[366749129,1750431044598,-460.0,0.00020445,2]
[366749132,1750431044607,-460.0,0.00020445,2]
[366749135,1750431044617,-460.0,0.00020445,2]
[366749138,1750431044627,-460.0,0.00020445,2]
[366749141,1750431044637,-460.0,0.00020445,2]
[366749144,1750431044647,-460.0,0.00020445,2]
[366749146,1750431044660,-460.0,0.00020445,2]
[366749148,1750431044670,-460.0,0.00020445,2]
[366749150,1750431044679,-460.0,0.00020445,2]
[366749152,1750431044690,-460.0,0.00020445,2]
[366749154,1750431044700,-1100.98,0.00020445,2]
[366749156,1750431044711,-417.1582337,0.00020445,2]
[366749158,1750431044721,-460.0,0.00020445,2]
[366749160,1750431044731,-460.0,0.00020445,2]
[366749162,1750431044741,-460.0,0.00020445,2]
[366749164,1750431044751,-460.0,0.00020445,2]
[366749166,1750431044760,-440.0,0.00020445,2]
[366749168,1750431044771,-460.0,0.00020445,2]
[366749170,1750431044780,-1057.04,0.00020445,2]
[366749172,1750431044790,-460.0,0.00020445,2]
[366749174,1750431044801,-460.0,0.00020445,2]
[366749176,1750431044811,-460.0,0.00020445,2]
[366749178,1750431044820,-768.21,0.00020445,2]
[366749180,1750431044831,-460.0,0.00020445,2]
[366749182,1750431044840,-460.0,0.00020445,2]
[366749184,1750431044850,-460.0,0.00020445,2]
[366749187,1750431044860,-487.3,0.00020445,2]
[366749189,1750431044870,-460.0,0.00020445,2]
[366749191,1750431044880,-516.42,0.00020445,2]
[366749193,1750431044890,-460.0,0.00020445,2]
[366749195,1750431044900,-460.0,0.00020445,2]
[366749197,1750431044910,-610.14,0.00020445,2]
[366749199,1750431044920,-510.41,0.00020445,2]
[366749201,1750431044930,-460.0,0.00020446,2]
[366749203,1750431044940,-460.0,0.00020446,2]
[366749205,1750431044950,-460.0,0.00020446,2]
[366749207,1750431044963,-460.0,0.00020446,2]
[366749209,1750431044973,-460.0,0.00020446,2]
[366749211,1750431044983,-440.08389935,0.00020446,2]
[366749213,1750431044992,-460.0,0.00020446,2]
[366749215,1750431045002,-1429.27,0.00020446,2]
[366749217,1750431045012,-460.0,0.00020446,2]
[366749219,1750431045022,-986.94,0.00020446,2]
[366749221,1750431045031,-460.0,0.00020446,2]
[366749223,1750431045041,-1516.08,0.00020446,2]
[366749225,1750431045051,-460.0,0.00020446,2]
[366749227,1750431045061,-460.0,0.00020446,2]
[366749229,1750431045071,-3817.68,0.00020446,2]
[366749231,1750431045081,-1145.28,0.00020446,2]
[366749233,1750431045091,-1148.61,0.00020446,2]
[366749235,1750431045101,-460.0,0.00020446,2]
[366749237,1750431045110,-460.0,0.00020446,2]
[366749239,1750431045119,-1080.37,0.00020446,2]
[366749241,1750431045129,-460.0,0.00020446,2]
[366749243,1750431045139,-460.0,0.00020447,2]
[366749245,1750431045148,-460.0,0.00020447,2]
[366749247,1750431045158,-150.83417795,0.00020447,2]
[366749249,1750431045168,-318.56818522,0.00020447,2]
[366749251,1750431045178,-460.0,0.00020447,2]
[366749253,1750431045188,-415.95325318,0.00020447,2]
[366749255,1750431045198,-460.0,0.00020447,2]
[366749257,1750431045209,-460.0,0.00020447,2]
[366749259,1750431045219,-460.0,0.00020447,2]
[366749261,1750431045229,-460.0,0.00020447,2]
[366749263,1750431045239,-460.0,0.00020447,2]
[366749265,1750431045248,-460.0,0.00020447,2]
[366749267,1750431045258,-460.0,0.00020447,2]
[366749269,1750431045268,-460.0,0.00020447,2]
[366749271,1750431045278,-460.0,0.00020447,2]
[366749273,1750431045287,-460.0,0.00020447,2]
[366749275,1750431045296,-460.0,0.00020447,2]
[366749277,1750431045306,-460.0,0.00020447,2]
[366749279,1750431045316,-460.0,0.00020447,2]
[366749281,1750431045325,-460.0,0.00020447,2]
[366749283,1750431045335,-460.0,0.00020447,2]
[366749285,1750431045344,-460.0,0.00020447,2]
[366749286,1750431045354,-575.18,0.00020447,2]
[366749289,1750431045363,-460.0,0.00020447,2]
[366749291,1750431045373,-460.0,0.00020447,2]
[366749295,1750431045383,-460.0,0.00020447,2]
[366749297,1750431045393,-460.0,0.00020447,2]
[366749299,1750431045402,-460.0,0.00020447,2]
[366749302,1750431045412,-460.0,0.00020447,2]
[366749303,1750431045421,-460.0,0.00020447,2]
[366749305,1750431045431,-460.0,0.00020447,2]
[366749309,1750431045443,-460.0,0.00020447,2]
[366749310,1750431045452,-460.0,0.00020447,2]
[366749312,1750431045465,-460.0,0.00020447,2]
[366749314,1750431045475,-460.0,0.00020447,2]
[366749316,1750431045485,-460.0,0.00020447,2]
[366749318,1750431045494,-460.0,0.00020447,2]
[366749320,1750431045504,-460.0,0.00020447,2]
[366749322,1750431045513,-460.0,0.00020447,2]
[366749324,1750431045523,-440.0,0.00020447,2]
[366749326,1750431045532,-460.0,0.00020447,2]
[366749329,1750431045541,-460.0,0.00020447,2]
[366749332,1750431045551,-460.0,0.00020447,2]
[366749334,1750431045561,-226.33864956,0.00020447,2]
[366749337,1750431045571,-460.0,0.00020447,2]
[366749340,1750431045580,-460.0,0.00020447,2]
[366749343,1750431045591,-460.0,0.00020447,2]
[366749345,1750431045600,-460.0,0.00020447,2]
[366749347,1750431045610,-460.0,0.00020447,2]
[366749349,1750431045620,-460.0,0.00020447,2]
[366749351,1750431045630,-460.0,0.00020447,2]
[366749353,1750431045640,-460.0,0.00020447,2]
[366749355,1750431045652,-460.0,0.00020447,2]
[366749357,1750431045661,-460.0,0.00020447,2]
[366749359,1750431045670,-460.0,0.00020447,2]
[366749361,1750431045680,-460.0,0.00020447,2]
[366749363,1750431045690,-460.0,0.00020447,2]
[366749365,1750431045699,-460.0,0.00020451,2]
[366749367,1750431045711,-460.0,0.00020536,2]
[366749369,1750431045721,-460.0,0.00020536,2]
[366749371,1750431045731,-460.0,0.00020536,2]
[366749373,1750431045741,-1352.02,0.00020536,2]
[366749375,1750431045751,-460.0,0.00020536,2]
[366749377,1750431045760,-2448.83,0.00020536,2]
[366749379,1750431045770,-411.35613136,0.00020536,2]
[366749381,1750431045780,-171.60045761,0.00020536,2]
[366749384,1750431045790,-460.0,0.00020536,2]
[366749387,1750431045800,-2727.09,0.00020536,2]
[366749389,1750431045809,-299.69361993,0.00020536,2]
[366749392,1750431045819,-460.0,0.00020536,2]
[366749393,1750431045830,-460.0,0.00020536,2]
[366749394,1750431045839,-577.1,0.00020536,2]
[366749395,1750431045849,-601.5,0.00020536,2]
[366749396,1750431045859,-460.0,0.00020536,2]
[366749397,1750431045869,-2869.72,0.00020536,2]
[366749398,1750431045878,-460.0,0.00020537,2]
[366749399,1750431045888,-460.0,0.00020537,2]
[366749400,1750431045898,-460.0,0.00020537,2]
[366749401,1750431045908,-213.18138622,0.00020537,2]
[366749402,1750431045917,-460.0,0.00020537,2]
[366749403,1750431045927,-2293.94,0.00020537,2]
[366749404,1750431045937,-2904.92,0.00020537,2]
[366749405,1750431045947,-460.0,0.00020537,2]
[366749406,1750431045959,-1252.35,0.00020537,2]
[366749407,1750431045969,-460.0,0.00020537,2]
[366749408,1750431045979,-241.62673082,0.00020537,2]
[366749409,1750431045988,-1295.45,0.00020537,2]
[366749410,1750431045998,-1344.73,0.00020537,2]
[366749411,1750431046007,-229.83376739,0.00020537,2]
[366749412,1750431046017,-460.0,0.00020537,2]
[366749413,1750431046026,-3259.61,0.00020537,2]
[366749414,1750431046036,-460.0,0.00020537,2]
[366749415,1750431046045,-473.67,0.00020537,2]
[366749416,1750431046055,-460.0,0.00020537,2]
[366749417,1750431046065,-460.0,0.00020537,2]
[366749418,1750431046075,-460.0,0.00020537,2]
[366749419,1750431046084,-684.83,0.00020537,2]
[366749420,1750431046094,-460.0,0.00020537,2]
[366749421,1750431046104,-460.0,0.00020537,2]
[366749423,1750431046113,-460.0,0.00020537,2]
[366749425,1750431046124,-460.0,0.00020537,2]
[366749426,1750431046133,-314.72477799,0.00020537,2]
[366749427,1750431046142,-477.17,0.00020537,2]
[366749428,1750431046152,-460.0,0.00020537,2]
[366749429,1750431046162,-920.41,0.00020537,2]
[366749430,1750431046173,-460.0,0.00020537,2]
[366749431,1750431046183,-460.0,0.00020537,2]
[366749432,1750431046192,-611.5,0.00020537,2]
[366749433,1750431046202,-500.0,0.00020547,7]
[366749434,1750431046214,-151.0,0.00020548,2]
[366749435,1750431046223,-151.0,0.00020548,2]
[366749436,1750431046233,-151.0,0.00020548,2]
[366749437,1750431046244,-151.0,0.00020548,2]
[366749438,1750431046253,-151.0,0.00020548,2]
[366749439,1750431046264,-328.0,0.00020574,2]
[366749440,1750431046274,-178.408,0.00020592,2]
[366749441,1750431046283,-300.778,0.00020592,2]
[366749442,1750431046293,-160.0,0.00020592,2]
[366749443,1750431046303,-213.51557418,0.00020592,2]
[366749445,1750431046312,-424.85694595,0.00020592,2]
[366749446,1750431046322,-12546.90244252,0.00020592,2]
[366749447,1750431046331,-160.0,0.00020592,2]
[366749449,1750431046340,-230.06456406,0.00020592,2]
[366749451,1750431046350,-846.08887863,0.00020592,2]
[366749452,1750431046360,-160.0,0.00020592,2]
[366749453,1750431046372,-523.92420239,0.00020592,2]
[366749454,1750431046381,-160.0,0.00020592,2]
[366749456,1750431046391,-160.0,0.00020592,2]
[366749458,1750431046401,-836.27303475,0.00020592,2]
[366749460,1750431046410,-160.0,0.00020592,2]
[366749462,1750431046420,-427.38813758,0.00020612,2]
[366749464,1750431046430,-151.0,0.00020635,2]
[366749465,1750431046440,-5000.0,0.00020659,2]
[366749466,1750431046450,-460.0,0.00020712,2]
[366749468,1750431046461,-460.0,0.00020712,2]
[366749470,1750431046471,-460.0,0.00020712,2]
[366749472,1750431046481,-460.0,0.00020712,2]
[366749474,1750431046491,-3253.42,0.00020712,2]
[366749475,1750431046500,-740.88,0.00020712,2]
[366749477,1750431046510,-1438.6,0.00020712,2]
[366749478,1750431046519,-460.0,0.00020712,2]
[366749479,1750431046529,-460.0,0.00020718,2]
[366749481,1750431046539,-460.0,0.00020718,2]
[366749483,1750431046549,-738.13,0.00020718,2]
[366749484,1750431046559,-460.0,0.00020718,2]
[366749485,1750431046569,-283.10620056,0.00020718,2]
[366749486,1750431046578,-460.0,0.00020718,2]
[366749487,1750431046588,-460.0,0.00020718,2]
[366749488,1750431046598,-460.0,0.00020718,2]
[366749489,1750431046607,-460.0,0.00020718,2]
[366749490,1750431046617,-460.0,0.00020718,2]
[366749491,1750431046627,-460.0,0.00020718,2]
[366749492,1750431046636,-460.0,0.00020718,2]
[366749493,1750431046647,-460.0,0.00020718,2]
[366749494,1750431046658,-552.52605129,0.00020718,2]
[366749495,1750431046668,-460.0,0.00020718,2]
[366749496,1750431046678,-460.0,0.00020718,2]
[366749497,1750431046687,-460.0,0.00020718,2]
[366749498,1750431046699,-460.0,0.00020718,2]
[366749499,1750431046709,-460.0,0.00020718,2]
[366749500,1750431046719,-460.0,0.00020718,2]
[366749501,1750431046731,-230.0,0.00020718,2]
[366749502,1750431046741,-460.0,0.00020718,2]
[366749503,1750431046751,-460.0,0.00020718,2]
[366749504,1750431046761,-460.0,0.00020718,2]
[366749505,1750431046771,-1310.9,0.00020718,2]
[366749506,1750431046780,-460.0,0.00020718,2]
[366749507,1750431046790,-460.0,0.00020718,2]
[366749508,1750431046800,-460.0,0.00020718,2]
[366749509,1750431046810,-460.0,0.00020718,2]
[366749510,1750431046819,-460.0,0.00020718,2]
[366749511,1750431046829,-460.0,0.00020718,2]
[366749512,1750431046839,-460.0,0.00020718,2]
[366749513,1750431046851,-460.0,0.00020719,2]
[366749514,1750431046860,-460.0,0.00020719,2]
[366749515,1750431046870,-460.0,0.00020719,2]
[366749516,1750431046879,-460.0,0.00020719,2]
[366749517,1750431046889,-460.0,0.00020719,2]
[366749518,1750431046899,-460.0,0.00020719,2]
[366749519,1750431046909,-460.0,0.00020719,2]
[366749520,1750431046918,-440.0,0.00020719,2]
[366749521,1750431046928,-1100.98,0.00020719,2]
[366749522,1750431046938,-460.0,0.00020719,2]
[366749523,1750431046948,-460.0,0.00020719,2]
[366749524,1750431046959,-151.917456,0.00020719,2]
[366749525,1750431046969,-460.0,0.00020719,2]
[366749526,1750431046979,-151.0,0.00020719,2]
[366749527,1750431046989,-301.563291,0.00020719,2]
[366749528,1750431046998,-151.0,0.00020719,2]
[366749529,1750431047008,-460.0,0.00020719,2]
[366749530,1750431047018,-1057.04,0.00020719,2]
[366749531,1750431047028,-151.0,0.00020719,2]
[366749532,1750431047037,-460.0,0.00020719,2]
[366749533,1750431047047,-151.0,0.00020719,2]
[366749534,1750431047058,-460.0,0.00020719,2]
[366749535,1750431047068,-460.0,0.00020719,2]
[366749536,1750431047077,-768.21,0.00020719,2]
[366749537,1750431047087,-460.0,0.00020719,2]
[366749538,1750431047097,-151.0,0.00020719,2]
[366749539,1750431047107,-460.0,0.00020719,2]
[366749540,1750431047116,-151.0,0.00020719,2]
[366749541,1750431047126,-415.0498861,0.00020719,2]
[366749542,1750431047135,-487.3,0.00020719,2]
[366749543,1750431047146,-1531.041092,0.00020719,2]
[366749544,1750431047155,-1531.041092,0.00020719,2]
[366749545,1750431047165,-516.42,0.00020719,2]
[366749546,1750431047175,-458.74890892,0.00020719,2]
[366749547,1750431047186,-460.0,0.00020719,2]
[366749548,1750431047195,-610.14,0.00020719,2]
[366749549,1750431047207,-510.41,0.00020719,2]
[366749550,1750431047217,-460.0,0.0002072,2]
[366749551,1750431047226,-460.0,0.0002072,2]
[366749552,1750431047236,-1429.27,0.0002072,2]
[366749553,1750431047246,-460.0,0.0002072,2]
[366749554,1750431047255,-986.94,0.0002072,2]
[366749555,1750431047265,-460.0,0.0002072,2]
[366749556,1750431047275,-1516.08,0.0002072,2]
[366749557,1750431047286,-460.0,0.0002072,2]
[366749558,1750431047296,-3817.68,0.0002072,2]
[366749559,1750431047307,-1145.28,0.0002072,2]
[366749560,1750431047317,-1148.61,0.0002072,2]
[366749561,1750431047326,-514.66560302,0.0002072,2]
[366749562,1750431047336,-460.0,0.0002072,2]
[366749563,1750431047345,-1080.37,0.0002072,2]
[366749564,1750431047355,-460.0,0.0002072,2]
[366749565,1750431047502,-1000.0,0.00020721,2]
[366749566,1750431047513,-208.11721888,0.00020721,2]
[366749567,1750431047523,-1000.0,0.00020721,2]
[366749568,1750431047533,-1000.0,0.00020721,2]
[366749569,1750431047543,-1000.0,0.00020721,2]
[366749570,1750431047554,-1000.0,0.00020721,2]
[366749571,1750431047563,-1000.0,0.00020721,2]
[366749572,1750431047574,-1000.0,0.00020721,2]
[366749573,1750431047583,-526.91160882,0.00020721,2]
[366749574,1750431047593,-302.88268238,0.00020721,2]
[366749575,1750431047602,-160.0,0.00020721,2]
[366749577,1750431047612,-460.0,0.00020721,2]
[366749578,1750431047622,-460.0,0.00020721,2]
[366749580,1750431047632,-460.0,0.00020721,2]
[366749581,1750431047643,-460.0,0.00020721,2]
[366749582,1750431047655,-575.18,0.00020721,2]
[366749584,1750431047665,-460.0,0.00020721,2]
[366749586,1750431047675,-460.0,0.00020721,2]
[366749588,1750431047684,-460.0,0.00020721,2]
[366749590,1750431047694,-460.0,0.00020721,2]
[366749592,1750431047704,-460.0,0.00020721,2]
[366749594,1750431047715,-268.07443736,0.00020721,2]
[366749596,1750431047726,-460.0,0.00020721,2]
[366749598,1750431047736,-460.0,0.00020721,2]
[366749599,1750431047745,-460.0,0.00020721,2]
[366749600,1750431047755,-460.0,0.00020721,2]
[366749602,1750431047764,-460.0,0.00020721,2]
[366749604,1750431047774,-460.0,0.00020721,2]
[366749605,1750431047784,-460.0,0.00020721,2]
[366749607,1750431047794,-460.0,0.00020721,2]
[366749609,1750431047804,-460.0,0.00020721,2]
[366749610,1750431047814,-460.0,0.00020721,2]
[366749611,1750431047824,-460.0,0.00020725,2]
[366749612,1750431047834,-301.01670579,0.00020743,2]
[366749613,1750431047843,-460.0,0.0002081,2]
[366749614,1750431047853,-460.0,0.0002081,2]
[366749615,1750431047863,-460.0,0.0002081,2]
[366749616,1750431047872,-1352.02,0.0002081,2]
[366749617,1750431047883,-460.0,0.0002081,2]
[366749618,1750431047893,-2448.83,0.0002081,2]
[366749620,1750431047903,-460.0,0.0002081,2]
[366749622,1750431047912,-2727.09,0.0002081,2]
[366749624,1750431047921,-460.0,0.0002081,2]
[366749626,1750431047931,-460.0,0.0002081,2]
[366749628,1750431047942,-577.1,0.0002081,2]
[366749630,1750431047951,-601.5,0.0002081,2]
[366749631,1750431047962,-458.0,0.0002081,2]
[366749633,1750431047971,-460.0,0.00020811,2]
[366749635,1750431047981,-460.0,0.00020811,2]
[366749637,1750431047991,-2293.94,0.00020811,2]
[366749639,1750431048002,-2904.92,0.00020811,2]
[366749641,1750431048011,-460.0,0.00020811,2]
[366749642,1750431048021,-1252.35,0.00020811,2]
[366749643,1750431048031,-1295.45,0.00020811,2]